bitfinex-derivatives/quotes_ETHF0:USTF0_20230105
["timestamp","ask_amount","ask_price","bid_price","bid_amount"]
[1672939993506,2.99868347,1248.4,1248.3,1.79254132]
[1672939995202,2.99868347,1248.4,1248.3,4.29254132]
[1672939996244,2.99868347,1248.4,1248.3,6.69444671]
[1672939997200,2.99868347,1248.4,1248.3,4.29254132]
[1672940000977,2.99868347,1248.4,1248.3,1.79254132]
[1672940001185,2.99868347,1248.4,1248.3,4.29254132]
[1672940004985,2.99868347,1248.4,1248.3,6.69444671]
[1672940005879,2.99868347,1248.4,1248.3,4.19444671]
[1672940006022,2.99868347,1248.4,1248.3,1.79254132]
[1672940006239,2.99868347,1248.4,1248.3,4.29254132]
[1672940006553,2.99868347,1248.4,1248.3,6.69444671]
[1672940006764,2.99868347,1248.4,1248.3,4.29254132]
[1672940007918,2.99868347,1248.4,1248.3,6.69444671]
[1672940009701,2.99868347,1248.4,1248.3,4.90190539]
[1672940010854,2.99868347,1248.4,1248.3,6.32186634]
[1672940012136,2.99868347,1248.4,1248.3,12.52442301]
[1672940012347,5.39977897,1248.4,1248.3,10.12251762]
[1672940014008,5.39977897,1248.4,1248.3,6.91471762]
[1672940014220,5.39977897,1248.4,1248.3,9.31734499]
[1672940015472,5.39977897,1248.4,1248.3,12.52514499]
[1672940015773,2.4010955,1248.4,1248.3,12.52514499]
[1672940017667,2.4010955,1248.4,1248.3,10.12251762]
[1672940017988,2.4010955,1248.4,1248.3,12.52457078]
[1672940018405,2.4010955,1248.4,1248.3,9.31677078]
[1672940018610,2.4010955,1248.4,1248.3,12.52457078]
[1672940018924,2.4010955,1248.4,1248.3,9.31677078]
[1672940019135,2.4010955,1248.4,1248.3,12.52457078]
[1672940023864,2.4010955,1248.4,1248.3,9.52981411]
[1672940024390,2.4010955,1248.4,1248.3,12.52457078]
[1672940024919,2.4010955,1248.4,1248.3,9.52981411]
[1672940026080,2.4010955,1248.4,1248.3,6.32201411]
[1672940026603,2.4010955,1248.4,1248.3,9.31677078]
[1672940026811,2.4010955,1248.4,1248.3,6.32201411]
[1672940027338,2.4010955,1248.4,1248.3,9.31677078]
[1672940027543,2.4010955,1248.4,1248.3,6.32201411]
[1672940027754,2.4010955,1248.4,1248.3,9.31677078]
[1672940027961,2.4010955,1248.4,1248.3,6.32201411]
[1672940029017,2.4010955,1248.4,1248.3,9.52981411]
[1672940029650,2.4010955,1248.4,1248.3,6.32201411]
[1672940030174,2.4010955,1248.4,1248.3,9.52981411]
[1672940031534,2.4010955,1248.4,1248.3,6.32201411]
[1672940031749,2.4010955,1248.4,1248.3,9.52981411]
[1672940032068,2.4010955,1248.4,1248.3,6.32201411]
[1672940032272,2.4010955,1248.4,1248.3,9.52981411]
[1672940033011,5.39977897,1248.4,1248.3,8.10985316]
[1672940033955,5.39977897,1248.4,1248.3,9.52976431]
[1672940034167,2.4010955,1248.4,1248.3,9.52976431]
[1672940035424,2.4010955,1248.4,1248.3,12.52452098]
[1672940035640,2.4010955,1248.4,1248.3,9.52976431]
[1672940035850,2.4010955,1248.4,1248.3,12.52452098]
[1672940036694,2.4010955,1248.4,1248.3,9.52976431]
[1672940038588,2.4010955,1248.4,1248.3,6.32196431]
[1672940042162,5.39977897,1248.4,1248.3,6.32196431]
[1672940042584,2.4010955,1248.4,1248.3,6.32196431]
[1672940043112,5.39977897,1248.4,1248.3,6.32196431]
[1672940047106,5.39977897,1248.4,1248.3,9.31672098]
[1672940047527,5.39977897,1248.4,1248.3,6.32196431]
[1672940047941,2.99868347,1248.4,1248.3,9.31672098]
[1672940051202,2.99868347,1248.4,1248.3,6.91466782]
[1672940052570,5.40107845,1248.4,1248.3,6.91466782]
[1672940054144,5.40107845,1248.4,1248.3,10.12246782]
[1672940054883,2.40239498,1248.4,1248.3,10.12246782]
[1672940055300,5.40107845,1248.5,1248.3,15.13671115]
[1672940055508,2.40239498,1248.5,1248.4,4.42341406]
[1672940055721,2.29025272,1248.5,1248.4,12.43241406]
[1672940055924,2.99868347,1248.6,1248.4,9.42891115]
[1672940056136,2.99868347,1248.6,1248.5,10.13100704]
[1672940056673,2.99868347,1248.6,1248.5,12.53369141]
[1672940056985,2.99868347,1248.6,1248.5,10.13100704]
[1672940057196,2.99868347,1248.7,1248.5,9.52857436]
[1672940057397,2.99868347,1248.7,1248.6,4.30065101]
[1672940057715,5.49868347,1248.7,1248.6,4.30065101]
[1672940059089,2.99868347,1248.7,1248.6,4.30065101]
[1672940059291,2.99868347,1248.7,1248.6,5.5006296]
[1672940059609,2.99868347,1248.7,1248.6,4.30065101]
[1672940060554,2.99868347,1248.8,1248.6,6.32037888]
[1672940060762,2.99868347,1248.8,1248.7,7.50722046]
[1672940061179,5.49868347,1248.9,1248.7,8.70579397]
[1672940061385,5.49868347,1248.9,1248.8,2.5]
[1672940062971,2.5,1248.9,1248.7,6.90637351]
[1672940063182,2.9963949,1248.8,1248.7,5.7078]
[1672940063493,2.9963949,1248.9,1248.7,8.70510053]
[1672940063713,5.4963949,1249.0,1248.8,3.69771304]
[1672940064120,2.9963949,1248.9,1248.8,3.69771304]
[1672940064337,5.4963949,1249.0,1248.8,3.69771304]
[1672940065177,5.4963949,1249.0,1248.8,2.5]
[1672940066653,2.9963949,1248.9,1248.7,6.90551304]
[1672940066854,2.5,1248.8,1248.7,6.90551304]
[1672940068638,2.5,1248.8,1248.7,5.7078]
[1672940068853,2.9963949,1248.9,1248.7,3.69771304]
[1672940069485,8.7041949,1249.0,1248.7,3.69771304]
[1672940073166,8.7041949,1249.0,1248.7,2.5]
[1672940073384,5.4963949,1249.0,1248.7,3.69771304]
[1672940074646,2.9963949,1249.0,1248.7,6.90551304]
[1672940074854,2.9963949,1249.2,1248.9,3.2078]
[1672940075058,16.5783949,1249.3,1249.0,2.5]
[1672940075273,2.9963949,1249.3,1249.0,2.5]
[1672940075704,5.4963949,1249.3,1249.0,2.5]
[1672940076013,2.9963949,1249.3,1249.1,3.2078]
[1672940076227,5.4963949,1249.4,1249.2,2.5]
[1672940078213,5.4963949,1249.4,1249.2,5.7078]
[1672940081693,8.7041949,1249.5,1249.2,5.7078]
[1672940081896,5.4963949,1249.5,1249.2,5.7078]
[1672940082108,2.5,1249.4,1249.2,5.7078]
[1672940083903,5.4963949,1249.5,1249.2,5.7078]
[1672940084111,2.5,1249.5,1249.2,5.7078]
[1672940085690,4.88654179,1249.5,1249.2,5.7078]
[1672940087150,4.88654179,1249.5,1249.3,3.2078]
[1672940087473,4.88654179,1249.5,1249.4,2.5]
[1672940088305,2.5,1249.5,1249.4,2.5]
[1672940088518,4.88654179,1249.6,1249.4,2.5]
[1672940088729,7.88293669,1249.6,1249.4,2.5]
[1672940088944,4.88654179,1249.6,1249.4,2.5]
[1672940089365,2.5,1249.5,1249.3,3.2078]
[1672940089995,2.5,1249.5,1249.2,10.509]
[1672940090202,4.88654179,1249.5,1249.2,10.509]
[1672940090830,2.5,1249.5,1249.2,10.509]
[1672940091042,4.88654179,1249.5,1249.2,10.509]
[1672940091679,4.88654179,1249.5,1249.2,13.7168]
[1672940092621,2.5,1249.5,1249.2,13.7168]
[1672940092825,4.88654179,1249.5,1249.2,13.7168]
[1672940093465,4.88654179,1249.5,1249.2,10.509]
[1672940093888,4.88654179,1249.5,1249.2,13.7168]
[1672940097144,7.88293669,1249.5,1249.2,13.7168]
[1672940097978,2.5,1249.3,1249.2,13.7168]
[1672940099450,2.5,1249.3,1249.2,3.2078]
[1672940100083,2.5,1249.3,1249.2,5.7078]
[1672940100816,2.5,1249.3,1249.1,8.009]
[1672940101030,2.5,1249.3,1249.2,2.5]
[1672940102082,2.38654179,1249.3,1249.2,2.5]
[1672940102304,2.5,1249.3,1249.2,2.5]
[1672940104285,2.38654179,1249.4,1249.2,2.5]
[1672940105757,2.38654179,1249.4,1249.2,5.7078]
[1672940109222,5.38293669,1249.4,1249.2,6.90551304]
[1672940109749,2.38654179,1249.4,1249.2,6.90551304]
[1672940110589,2.38654179,1249.4,1249.2,8.7049335]
[1672940111007,2.38654179,1249.4,1249.2,6.90551304]
[1672940111224,5.38293669,1249.4,1249.2,8.7049335]
[1672940111748,2.38654179,1249.4,1249.2,8.7049335]
[1672940111954,2.38654179,1249.4,1249.3,1.19771304]
[1672940113109,2.9963949,1249.4,1249.3,2.9971335]
[1672940114689,2.9963949,1249.4,1249.3,6.2049335]
[1672940115218,6.09904253,1249.5,1249.3,6.20576774]
[1672940117110,6.09904253,1249.5,1249.3,1.19854728]
[1672940118049,6.09904253,1249.5,1249.3,2.99796774]
[1672940121311,10.29792548,1249.5,1249.3,2.99796774]
[1672940121842,6.09904253,1249.5,1249.3,2.99796774]
[1672940122363,10.29792548,1249.5,1249.3,2.99796774]
[1672940123837,6.09904253,1249.5,1249.4,1.19854728]
[1672940124040,6.09904253,1249.5,1249.4,2.5]
[1672940125727,6.09904253,1249.5,1249.3,2.99796774]
[1672940126255,6.09904253,1249.5,1249.4,2.5]
[1672940129620,6.09904253,1249.5,1249.3,8.70576774]
[1672940130568,6.09904253,1249.5,1249.4,2.5]
[1672940131406,10.29792548,1249.5,1249.4,2.5]
[1672940131617,5.7078,1249.5,1249.3,3.69854728]
[1672940131822,3.60079096,1249.4,1249.3,3.69854728]
[1672940132043,3.60079096,1249.4,1249.3,1.19854728]
[1672940138872,3.60079096,1249.4,1249.2,3.69854728]
[1672940139281,2.5,1249.3,1249.2,1.19854728]
[1672940139492,2.5,1249.3,1249.2,3.69854728]
[1672940139713,2.5,1249.3,1249.2,1.19854728]
[1672940140129,2.5,1249.3,1249.2,3.69854728]
[1672940140659,2.5,1249.3,1249.2,1.19854728]
[1672940142026,2.5,1249.3,1249.2,3.69854728]
[1672940142235,2.5,1249.3,1249.2,1.19854728]
[1672940142552,5.7078,1249.3,1249.2,1.19854728]
[1672940142757,9.30859096,1249.3,1249.2,1.19854728]
[1672940143179,9.30859096,1249.3,1249.1,4.40634728]
[1672940143495,2.99970257,1249.2,1249.1,4.4062826]
[1672940144343,2.99970257,1249.2,1249.1,1.1984826]
[1672940144967,2.99970572,1249.2,1249.1,1.1984826]
[1672940146227,3.60079096,1249.2,1249.0,1.1984826]
[1672940146544,9.90668295,1249.3,1249.0,1.1984826]
[1672940146545,6.80859096,1249.1,1249.0,1.1984826]
[1672940146747,6.80859096,1249.1,1248.9,1.1984826]
[1672940146952,5.49966814,1249.0,1248.9,1.1984826]
[1672940149067,5.49966814,1249.0,1248.8,1.1984826]
[1672940149381,4.89603929,1248.9,1248.8,3.6984826]
[1672940149695,4.89603929,1248.9,1248.8,1.1984826]
[1672940150853,7.89570743,1249.0,1248.8,1.1984826]
[1672940151164,4.89603929,1249.0,1248.8,1.1984826]
[1672940151376,4.89603929,1249.0,1248.9,1.1984826]
[1672940151585,2.39603929,1249.0,1248.9,1.1984826]
[1672940152216,2.5,1249.0,1248.9,1.1984826]
[1672940152426,4.89603929,1249.0,1248.9,1.1984826]
[1672940152635,2.5,1249.0,1248.9,3.6984826]
[1672940153052,4.89603929,1249.0,1248.9,3.6984826]
[1672940154738,4.89603929,1249.0,1248.9,1.1984826]
[1672940155264,4.89603929,1249.0,1248.8,4.4062826]
[1672940155685,4.89603929,1249.0,1248.8,1.1984826]
[1672940158736,8.10383929,1249.0,1248.8,1.1984826]
[1672940159993,8.10383929,1249.0,1248.7,6.9062826]
[1672940160411,8.10383929,1249.0,1248.8,1.1984826]
[1672940161151,8.10383929,1249.0,1248.7,6.9062826]
[1672940162300,11.10350743,1249.0,1248.7,6.9062826]
[1672940162617,8.10383929,1249.0,1248.7,6.9062826]
[1672940163038,11.10350743,1249.0,1248.7,6.9062826]
[1672940163252,2.39603929,1248.9,1248.7,1.1984826]
[1672940163462,2.39603929,1248.9,1248.6,11.7074826]
[1672940163673,2.5,1248.8,1248.7,1.1984826]
[1672940163873,2.5,1248.8,1248.7,3.6984826]
[1672940165666,2.5,1248.8,1248.6,3.6984826]
[1672940165879,5.7078,1248.8,1248.6,1.1984826]
[1672940166193,5.7078,1248.8,1248.5,1.1984826]
[1672940166194,8.10383929,1248.8,1248.5,1.1984826]
[1672940166399,2.39603929,1248.7,1248.5,1.1984826]
[1672940166609,2.5,1248.6,1248.5,3.6984826]
[1672940172286,2.5,1248.6,1248.5,1.1984826]
[1672940173545,2.5,1248.6,1248.4,3.6984826]
[1672940174596,2.5,1248.6,1248.5,1.1984826]
[1672940176703,3.2078,1248.7,1248.5,1.1984826]
[1672940177008,2.5,1248.8,1248.5,4.4062826]
[1672940177223,4.89603929,1248.8,1248.6,2.5]
[1672940179224,4.89603929,1248.8,1248.6,3.6984826]
[1672940180691,4.89603929,1248.8,1248.6,2.5]
[1672940181217,4.89603929,1248.8,1248.6,3.6984826]
[1672940181218,8.10383929,1248.8,1248.6,3.6984826]
[1672940183625,8.10383929,1248.8,1248.6,1.1984826]
[1672940184058,11.10350743,1248.8,1248.6,1.1984826]
[1672940184580,2.39603929,1248.7,1248.6,1.1984826]
[1672940194248,5.39570743,1248.7,1248.6,1.1984826]
[1672940195201,2.99966814,1248.7,1248.6,1.1984826]
[1672940197095,5.39879795,1248.7,1248.6,2.99474183]
[1672940197408,5.39879795,1248.7,1248.6,1.79625923]
[1672940199504,5.39879795,1248.7,1248.6,4.19712244]
[1672940200025,2.99966814,1248.7,1248.6,1.79625923]
[1672940202453,2.99966814,1248.7,1248.6,4.19712244]
[1672940202664,2.99966814,1248.7,1248.6,1.79625923]
[1672940203291,2.99966814,1248.7,1248.6,4.19712244]
[1672940203926,2.99966814,1248.7,1248.6,1.79625923]
[1672940204243,2.99966814,1248.7,1248.6,4.19712244]
[1672940204771,2.99966814,1248.7,1248.6,1.79625923]
[1672940205295,2.99966814,1248.7,1248.6,4.19712244]
[1672940206345,2.99966814,1248.7,1248.6,4.19472001]
[1672940207291,2.99966814,1248.7,1248.6,2.40086321]
[1672940210863,2.99966814,1248.7,1248.6,3.82045831]
[1672940217808,2.99966814,1248.7,1248.6,2.40086321]
[1672940222346,2.99966814,1248.7,1248.6,3.82045987]
[1672940222655,2.99966814,1248.7,1248.6,3.82045989]
[1672940222863,2.99966814,1248.7,1248.6,2.40086321]
[1672940223191,2.99966814,1248.7,1248.6,3.82046001]
[1672940223921,2.99966814,1248.7,1248.6,2.40086321]
[1672940225299,2.99966814,1248.7,1248.6,3.82043181]
[1672940226654,2.99966814,1248.7,1248.6,2.40086321]
[1672940227815,2.99966814,1248.7,1248.6,3.82046047]
[1672940228025,2.99966814,1248.7,1248.6,2.40086321]
[1672940228438,2.99966814,1248.7,1248.6,3.82046071]
[1672940228645,2.99966814,1248.7,1248.6,2.40086321]
[1672940228858,2.99966814,1248.7,1248.6,3.82046412]
[1672940229067,2.99966814,1248.7,1248.6,2.40086321]
[1672940229280,2.99966814,1248.7,1248.6,3.82046373]
[1672940229692,2.99966814,1248.7,1248.6,2.40086321]
[1672940231266,2.99966814,1248.7,1248.6,3.82045618]
[1672940231580,2.99966814,1248.7,1248.6,2.40086321]
[1672940232629,2.99966814,1248.7,1248.6,3.82046562]
[1672940234314,2.99966814,1248.7,1248.6,2.40086321]
[1672940234734,2.99966814,1248.7,1248.6,3.82046924]
[1672940234943,2.99966814,1248.7,1248.6,2.40086321]
[1672940235358,9.30859096,1248.8,1248.6,2.40086321]
[1672940235567,9.30859096,1248.8,1248.7,1.20091725]
[1672940236630,6.10079096,1248.8,1248.7,1.20091725]
[1672940236828,9.30859096,1248.8,1248.7,1.20091725]
[1672940237258,6.10079096,1248.8,1248.7,1.20091725]
[1672940237470,9.30859096,1248.8,1248.7,1.20091725]
[1672940237896,6.10079096,1248.8,1248.7,1.20091725]
[1672940238098,9.30859096,1248.8,1248.7,1.20091725]
[1672940238416,6.10079096,1248.8,1248.7,1.20091725]
[1672940238621,9.30859096,1248.8,1248.7,1.20091725]
[1672940241569,6.10079096,1248.8,1248.7,1.20091725]
[1672940241883,9.30859096,1248.8,1248.7,1.20091725]
[1672940244933,13.50747391,1248.8,1248.7,1.20091725]
[1672940245142,9.30859096,1248.8,1248.7,1.20091725]
[1672940245767,6.10079096,1248.8,1248.7,1.20091725]
[1672940245978,9.30859096,1248.8,1248.7,1.20091725]
[1672940246194,6.10079096,1248.8,1248.7,1.20091725]
[1672940246405,9.30859096,1248.8,1248.7,1.20091725]
[1672940248405,6.10079096,1248.8,1248.7,1.20091725]
[1672940248825,9.30859096,1248.8,1248.7,1.20091725]
[1672940250721,6.10079096,1248.8,1248.7,1.20091725]
[1672940251033,9.30859096,1248.8,1248.7,1.20091725]
[1672940253454,6.10079096,1248.8,1248.7,1.20091725]
[1672940254185,9.30859096,1248.8,1248.7,1.20091725]
[1672940255774,6.10079096,1248.8,1248.7,1.20091725]
[1672940255970,9.30859096,1248.8,1248.7,1.20091725]
[1672940258599,13.50747391,1248.8,1248.7,1.20091725]
[1672940258816,9.30859096,1248.8,1248.7,1.20091725]
[1672940259661,6.10079096,1248.8,1248.7,1.20091725]
[1672940260182,9.30859096,1248.8,1248.7,1.20091725]
[1672940260812,6.10079096,1248.8,1248.7,1.20091725]
[1672940261020,9.30859096,1248.8,1248.7,1.20091725]
[1672940262072,9.30859096,1248.8,1248.6,1.20091725]
[1672940262286,13.50747391,1248.8,1248.6,3.70091725]
[1672940263127,3.60079096,1248.7,1248.6,3.70091725]
[1672940263965,13.50747391,1248.8,1248.6,3.70091725]
[1672940264597,3.60079096,1248.7,1248.6,3.70091725]
[1672940264809,3.60079096,1248.7,1248.6,1.20091725]
[1672940265966,6.80859096,1248.7,1248.6,1.20091725]
[1672940266594,3.60079096,1248.7,1248.6,1.20091725]
[1672940266804,6.80859096,1248.7,1248.6,1.20091725]
[1672940268909,10.29967391,1248.8,1248.6,1.20091725]
[1672940269119,3.2078,1248.7,1248.6,1.20091725]
[1672940269433,6.80859096,1248.7,1248.6,1.20091725]
[1672940270174,3.60079096,1248.7,1248.6,1.20091725]
[1672940270493,6.80859096,1248.7,1248.6,1.20091725]
[1672940271751,0.00525187,1248.6,1248.4,3.00213924]
[1672940271962,3.2078,1248.5,1248.4,3.00213924]
[1672940272176,5.7078,1248.5,1248.4,1.20091725]
[1672940272373,8.7080024,1248.5,1248.4,1.20091725]
[1672940277212,8.7080024,1248.5,1248.3,5.49548415]
[1672940277531,4.89901364,1248.4,1248.3,4.30122199]
[1672940278995,2.39901364,1248.4,1248.3,4.30122199]
[1672940282566,2.39901364,1248.5,1248.3,4.90086321]
[1672940282785,2.39901364,1248.4,1248.3,4.29868476]
[1672940283101,5.39921604,1248.5,1248.3,4.29868476]
[1672940285202,2.39901364,1248.4,1248.3,4.29868476]
[1672940285408,4.89901364,1248.4,1248.3,4.29868476]
[1672940286566,2.39901364,1248.4,1248.3,4.29868476]
[1672940288565,7.89921604,1248.5,1248.3,4.29868476]
[1672940289618,5.39921604,1248.5,1248.3,4.29868476]
[1672940289821,2.39901364,1248.5,1248.3,6.69954797]
[1672940290031,4.89901364,1248.5,1248.3,6.69954797]
[1672940290244,2.39901364,1248.5,1248.3,6.69954797]
[1672940291718,5.39921604,1248.5,1248.3,6.69954797]
[1672940292035,2.39901364,1248.4,1248.3,4.29868476]
[1672940292242,4.89901364,1248.4,1248.3,4.29868476]
[1672940292664,2.39901364,1248.4,1248.3,4.29868476]
[1672940294040,2.39901364,1248.4,1248.3,6.69954797]
[1672940294562,2.39901364,1248.4,1248.3,4.29868476]
[1672940295191,4.89901364,1248.4,1248.3,1.79868476]
[1672940296036,2.39901364,1248.4,1248.3,1.79868476]
[1672940298131,5.39921604,1248.4,1248.3,1.79868476]
[1672940298452,2.39901364,1248.4,1248.3,1.79868476]
[1672940300554,7.89961278,1248.4,1248.3,1.79868476]
[1672940300762,7.89963407,1248.4,1248.3,1.79868476]
[1672940301821,5.5002024,1248.4,1248.3,1.79868476]
[1672940302024,2.5,1248.4,1248.1,1.79868476]
[1672940302232,2.39939239,1248.2,1248.1,1.79868476]
[1672940302437,5.49924049,1248.2,1248.1,1.79868476]
[1672940302654,7.89852835,1248.2,1248.1,1.79868476]
[1672940302864,4.89930282,1248.2,1248.1,4.19954797]
[1672940303077,4.89930282,1248.2,1248.1,1.79868476]
[1672940305179,2.39930282,1248.2,1248.1,1.79868476]
[1672940306336,4.89930282,1248.2,1248.1,1.79868476]
[1672940306547,2.39930282,1248.2,1248.1,1.79868476]
[1672940307493,4.89930282,1248.2,1248.1,1.79868476]
[1672940308232,2.39930282,1248.2,1248.1,1.79868476]
[1672940309603,2.39930282,1248.2,1248.1,4.19954797]
[1672940309812,2.39930282,1248.2,1248.1,5.00648476]
[1672940310018,2.39930282,1248.3,1248.1,7.02868868]
[1672940310233,2.39930282,1248.3,1248.2,4.29925808]
[1672940310856,2.39930282,1248.3,1248.2,6.70012129]
[1672940311585,2.39930282,1248.3,1248.2,4.29925808]
[1672940313905,5.39854331,1248.3,1248.2,4.29925808]
[1672940314327,2.39930282,1248.3,1248.2,4.29925808]
[1672940315799,2.39930282,1248.3,1248.2,6.70012129]
[1672940316003,2.39930282,1248.3,1248.2,4.29925808]
[1672940320531,4.89930282,1248.3,1248.2,4.29925808]
[1672940321257,2.39930282,1248.3,1248.2,4.29925808]
[1672940323369,5.39854331,1248.3,1248.2,4.29925808]
[1672940324310,2.39930282,1248.3,1248.2,4.29925808]
[1672940325254,7.89854331,1248.3,1248.2,1.79925808]
[1672940325465,5.49924049,1248.3,1248.1,1.79925808]
[1672940325779,4.89838814,1248.2,1248.1,1.79925808]
[1672940327668,7.89762863,1248.2,1248.1,1.79925808]
[1672940327878,4.89838814,1248.2,1248.1,1.79925808]
[1672940328827,2.39838814,1248.2,1248.1,1.79925808]
[1672940333349,2.39838814,1248.2,1248.1,4.20012129]
[1672940333560,2.39838814,1248.2,1248.1,7.02876076]
[1672940334925,2.39838814,1248.2,1248.1,5.60866321]
[1672940335135,2.39838814,1248.2,1248.1,7.02875952]
[1672940335346,2.39838814,1248.2,1248.1,7.02875968]
[1672940337232,2.39838814,1248.2,1248.1,5.60866321]
[1672940337659,2.39838814,1248.2,1248.1,2.40086321]
[1672940339021,2.39838814,1248.2,1248.1,4.20152107]
[1672940339022,5.39762863,1248.2,1248.1,4.20152107]
[1672940339230,5.39762863,1248.2,1248.1,1.80065786]
[1672940339434,5.39762863,1248.2,1248.1,4.20152107]
[1672940340804,5.39946275,1248.2,1248.1,4.20152107]
[1672940341014,2.99924049,1248.2,1248.1,1.80065786]
[1672940341220,5.39943432,1248.2,1248.1,4.20152107]
[1672940341445,2.99924049,1248.2,1248.1,4.20152107]
[1672940341646,2.99924049,1248.2,1248.1,1.80065786]
[1672940343110,2.99924049,1248.2,1248.1,4.20152107]
[1672940343325,2.99924049,1248.2,1248.1,1.80065786]
[1672940344282,2.99924049,1248.2,1248.1,4.20152107]
[1672940344703,2.99924049,1248.2,1248.1,1.80065786]
[1672940345020,2.99924049,1248.2,1248.1,1.7972557]
[1672940345541,6.20704049,1248.2,1248.1,1.7972557]
[1672940346491,3.2078,1248.2,1248.0,2.5]
[1672940346702,2.99980861,1248.1,1248.0,2.5]
[1672940347018,5.49980861,1248.1,1247.9,4.90086321]
[1672940347226,2.3990731,1248.0,1247.9,4.90086321]
[1672940347437,3.8990731,1248.0,1247.9,6.3212055]
[1672940348065,2.3990731,1248.0,1247.9,6.3212055]
[1672940348796,7.89888171,1248.1,1247.9,6.3212055]
[1672940349115,4.8990731,1248.0,1247.9,4.90086321]
[1672940349747,2.3990731,1248.0,1247.9,4.90086321]
[1672940352900,2.3990731,1248.0,1247.9,2.5]
[1672940355742,2.3990731,1248.0,1247.9,4.90086321]
[1672940355951,2.3990731,1248.0,1247.9,2.5]
[1672940356264,2.3990731,1248.0,1247.9,4.90086321]
[1672940356464,2.3990731,1248.0,1247.9,2.5]
[1672940356997,11.10668171,1248.1,1247.9,4.90086321]
[1672940357213,8.60668171,1248.1,1247.9,4.90086321]
[1672940357626,5.39888171,1248.1,1247.9,4.90086321]
[1672940360154,2.3990731,1248.1,1247.9,4.90086321]
[1672940360992,2.3990731,1248.1,1247.9,6.32112255]
[1672940361203,2.3990731,1248.1,1247.9,7.9041591]
[1672940362046,2.3990731,1248.1,1247.9,4.90086321]
[1672940362257,2.3990731,1248.1,1247.9,9.32441924]
[1672940362462,2.3990731,1248.1,1247.9,7.9041591]
[1672940363307,2.3990731,1248.1,1248.0,2.40086321]
[1672940364243,2.3990731,1248.1,1248.0,5.60866321]
[1672940364456,2.3990731,1248.2,1248.1,2.5]
[1672940364874,2.3990731,1248.2,1248.1,4.90086321]
[1672940365405,5.39888171,1248.3,1248.1,6.32093695]
[1672940365718,5.39888171,1248.3,1248.1,4.90086321]
[1672940366140,2.3990731,1248.3,1248.2,3.2078]
[1672940368665,2.3990731,1248.3,1248.1,4.90086321]
[1672940368871,2.3990731,1248.3,1248.2,3.2078]
[1672940369821,2.3990731,1248.3,1248.1,4.90086321]
[1672940370032,2.3990731,1248.3,1248.2,3.2078]
[1672940382861,5.39888171,1248.4,1248.2,3.2078]
[1672940383180,5.39888171,1248.4,1248.3,2.5]
[1672940384017,2.3990731,1248.4,1248.3,2.5]
[1672940385494,2.3990731,1248.4,1248.2,3.2078]
[1672940385699,5.39888171,1248.4,1248.3,2.5]
[1672940386440,2.99980861,1248.4,1248.3,2.5]
[1672940386861,5.39660823,1248.4,1248.3,2.5]
[1672940387283,2.99980861,1248.4,1248.3,2.5]
[1672940387598,5.39674122,1248.4,1248.3,2.5]
[1672940387810,2.99980861,1248.4,1248.3,2.5]
[1672940388021,5.39674182,1248.4,1248.3,2.5]
[1672940388540,2.99980861,1248.4,1248.3,2.5]
[1672940392016,2.99980861,1248.4,1248.1,16.11766321]
[1672940392226,4.89723406,1248.3,1248.1,16.11766321]
[1672940392543,4.89723406,1248.3,1248.1,12.90986321]
[1672940392755,4.89723406,1248.3,1248.1,16.11766321]
[1672940392964,2.39723406,1248.3,1248.1,16.11766321]
[1672940394643,2.39723406,1248.3,1248.1,12.90986321]
[1672940394958,2.39723406,1248.3,1248.1,16.11766321]
[1672940397384,2.39723406,1248.3,1248.2,1.19953818]
[1672940397597,2.39723406,1248.3,1248.2,2.40086321]
[1672940397909,2.39723406,1248.3,1248.1,19.1209591]
[1672940399067,2.39723406,1248.3,1248.2,2.40086321]
[1672940399589,5.39704267,1248.3,1248.2,2.40086321]
[1672940400426,2.39723406,1248.3,1248.2,2.40086321]
[1672940400960,5.39704267,1248.3,1248.2,2.40086321]
[1672940401900,2.39723406,1248.3,1248.2,3.82087458]
[1672940402118,5.39704267,1248.3,1248.2,2.40086321]
[1672940402954,2.99980861,1248.3,1248.2,3.82090167]
[1672940405161,2.99980861,1248.3,1248.2,2.40086321]
[1672940406003,2.99980861,1248.3,1248.2,3.82093336]
[1672940407163,2.99980861,1248.3,1248.2,2.40086321]
[1672940408853,6.80859096,1248.4,1248.2,4.20336898]
[1672940409167,2.5,1248.3,1248.2,4.20336898]
[1672940409371,2.5,1248.3,1248.2,1.80250577]
[1672940409686,2.5,1248.3,1248.2,3.00412974]
[1672940410532,2.5,1248.3,1248.2,1.80250577]
[1672940410949,2.5,1248.3,1248.2,3.00391183]
[1672940411892,5.7078,1248.3,1248.2,3.00391183]
[1672940412639,5.7078,1248.3,1248.2,1.80250577]
[1672940413261,3.2078,1248.3,1248.2,1.80250577]
[1672940414202,6.20996236,1248.3,1248.2,1.80250577]
[1672940414414,8.70996236,1248.3,1248.2,1.80250577]
[1672940415788,5.50216236,1248.3,1248.2,1.80250577]
[1672940416948,2.5,1248.3,1248.2,1.80250577]
[1672940417256,5.50206033,1248.3,1248.2,1.80250577]
[1672940417466,3.00206033,1248.3,1248.2,1.80250577]
[1672940417666,5.50206033,1248.3,1248.2,2.40086321]
[1672940418310,3.00206033,1248.3,1248.2,2.40086321]
[1672940419151,5.40383208,1248.3,1248.2,7.028702]
[1672940419988,5.39974504,1248.3,1248.2,7.028702]
[1672940420203,2.40177175,1248.3,1248.2,7.028702]
[1672940422626,2.40177175,1248.3,1248.2,10.03199789]
[1672940423043,2.40177175,1248.3,1248.2,10.033063]
[1672940425903,2.40177175,1248.3,1248.2,6.825263]
[1672940426110,2.40177175,1248.3,1248.2,7.02976711]
[1672940426440,2.40177175,1248.3,1248.2,10.033063]
[1672940426972,2.40177175,1248.3,1248.2,7.02976711]
[1672940427701,2.40177175,1248.3,1248.2,3.82196711]
[1672940428014,2.40177175,1248.3,1248.2,7.02976711]
[1672940428643,2.40177175,1248.3,1248.2,3.82196711]
[1672940428952,2.40177175,1248.3,1248.2,7.02976711]
[1672940430005,2.5,1248.4,1248.2,4.20311399]
[1672940430215,2.5,1248.4,1248.3,1.20080538]
[1672940432643,2.5,1248.4,1248.2,3.00199105]
[1672940432844,6.10079096,1248.4,1248.2,3.00199105]
[1672940433780,9.30859096,1248.4,1248.2,3.00199105]
[1672940434313,6.10079096,1248.4,1248.2,3.00199105]
[1672940434516,9.30859096,1248.4,1248.2,3.00199105]
[1672940435257,9.30859096,1248.4,1248.2,1.20080538]
[1672940436829,9.30859096,1248.4,1248.2,3.00199105]
[1672940437148,9.30859096,1248.4,1248.2,1.20080538]
[1672940438438,9.30859096,1248.4,1248.2,3.00199105]
[1672940439551,5.7078,1248.4,1248.3,1.20080538]
[1672940439763,5.7078,1248.4,1248.3,3.70080538]
[1672940439959,5.7078,1248.4,1248.3,1.20080538]
[1672940441537,5.7078,1248.4,1248.2,3.00199105]